Workbook

Sheet Total SCS opex forecast
A1: Evoenergy Electricity Distribution Deterimation 2019-24
A2: Opex model
A3: Total Standard Control Services
A4: Forecast | M4: Base year | N4: Final year | O4: 2019-24 regulatory control period
D5: Source | E5: Unit | F5: Basis | G5: Timing | L5: FY ending June | M5: =2018 -> 2018 | N5: =M5+1 -> 2019 | O5: 2020 | P5: 2021 | Q5: 2022 | R5: 2023 | S5: 2024 | U5: Total FY19-24
B9: Calc | Operating expenditure
M11: Actual/Forecast | N11: Forecast | O11: Forecast | P11: Forecast | Q11: Forecast | R11: Forecast | S11: Forecast
C12: Opex | D12: Source | E12: Unit | F12: Basis | M12: ="FY"&RIGHT(M$5,2) -> FY18 | N12: ="FY"&RIGHT(N$5,2) -> FY19 | O12: FY20 | P12: FY21 | Q12: FY22 | R12: FY23 | S12: ="FY"&RIGHT(S$5,2) -> FY24
C14: Base opex
C15: Total opex | E15: $ millions | F15: Nominal | G15: Mid-year | M15: 54.7965254
B16: Adjustments | E16: $ millions | F16: Nominal | G16: Mid-year
C17: Power of Choice (Likely Pass Through) | E17: $ millions | F17: Nominal | G17: Mid-year | M17: -1.19163178
C18: Ring Fencing Implementation (Likely Pass Through) | E18: $ millions | F18: Nominal | G18: Mid-year | M18: -2.17736478
C19: Adjusted base opex | E19: $ millions | F19: Nominal | G19: Mid-year | M19: =SUM(M15:M18) -> 51.42752884
C21: Rate of change
C22: Real input price growth | D22: Rate of change | E22: per cent | F22: n/a | N22: ='Rate of change'!N103 -> 0.004407272879 | O22: ='Rate of change'!O103 -> 0.003408309293 | P22: ='Rate of change'!P103 -> 0.006732526423 | Q22: ='Rate of change'!Q103 -> 0.009467659081 | R22: ='Rate of change'!R103 -> 0.009268497114 | S22: ='Rate of change'!S103 -> 0.007872606348
C23: Output growth | D23: Rate of change | E23: per cent | F23: n/a | N23: ='Rate of change'!N104 -> 0.01702710041 | O23: ='Rate of change'!O104 -> 0.01574598493 | P23: ='Rate of change'!P104 -> 0.01489834186 | Q23: ='Rate of change'!Q104 -> 0.01409698253 | R23: ='Rate of change'!R104 -> 0.01284019202 | S23: ='Rate of change'!S104 -> 0.01188186875
C24: Productivity growth | D24: Rate of change | E24: per cent | F24: n/a | N24: ='Rate of change'!N105 -> 0 | O24: ='Rate of change'!O105 -> 0 | P24: ='Rate of change'!P105 -> 0 | Q24: ='Rate of change'!Q105 -> 0 | R24: ='Rate of change'!R105 -> 0 | S24: ='Rate of change'!S105 -> 0
C25: Rate of change | D25: Calculated | E25: per cent | F25: n/a | N25: =N22+N23-N24 -> 0.02143437329 | O25: =O22+O23-O24 -> 0.01915429422 | P25: 0.02163086828 | Q25: 0.02356464161 | R25: 0.02210868913 | S25: 0.01975447509
C28: Base opex - Total SCS | D28: Calculated | F28: Real FY18 | G28: Year-end | M28: =SUM(M15:M18)/'Rate of change'!$M$26 -> 51.93925815 | N28: =M28*(1+N$25) -> 53.05254359 | O28: =N28*(1+O$25) -> 54.06872762 | P28: =O28*(1+P$25) -> 55.23828115 | Q28: 56.53995145 | R28: 57.78997566 | S28: 58.93158629 | U28: =SUM(O28:S28) -> 282.5685222
C29: Base opex - Total SCS | D29: Calculated | F29: Real FY19 | G29: Year-end | M29: =M28*(1+'Rate of change'!$N$16) -> 52.97804331 | N29: =N28*(1+'Rate of change'!$N$16) -> 54.11359447 | O29: =O28*(1+'Rate of change'!$N$16) -> 55.15010218 | P29: =P28*(1+'Rate of change'!$N$16) -> 56.34304677 | Q29: =Q28*(1+'Rate of change'!$N$16) -> 57.67075048 | R29: =R28*(1+'Rate of change'!$N$16) -> 58.94577517 | S29: =S28*(1+'Rate of change'!$N$16) -> 60.11021802 | U29: =SUM(O29:S29) -> 288.2198926
C33: Step changes
N35: ="FY"&RIGHT(N$5,2) -> FY19 | O35: ="FY"&RIGHT(O$5,2) -> FY20 | P35: FY21 | Q35: FY22 | R35: FY23 | S35: FY24
C36: Vegetation and private electrical infrastructure responsibilities | E36: $ millions | F36: Real FY18 | G36: Year-end | N36: 3.682109982 | O36: 3.678447829 | P36: 3.690634253 | Q36: 3.700661121 | R36: 3.699931003 | S36: 3.694813732 | U36: =SUM(O36:S36) -> 18.46448794
C37: Strathnairn demand management opex capex trade-off | E37: $ millions | F37: Real FY19 | G37: Year-end | N37: 0 | O37: 0.3514121659 | P37: 0.3525763682 | Q37: 0.3535342623 | R37: 0.3534645121 | S37: 0.3529756453 | U37: =SUM(O37:S37) -> 1.763962954
C39: Total step changes | D39: Calculated | E39: $ millions | F39: Real FY18 | G39: Year-end | N39: =SUM(N36:N37) -> 3.682109982 | O39: 4.029859994 | P39: 4.043210621 | Q39: 4.054195383 | R39: 4.053395515 | S39: 4.047789378 | U39: =SUM(O39:S39) -> 20.22845089
C40: Total step changes | D40: Calculated | E40: $ millions | F40: Real FY19 | G40: Year-end | N40: =N39*(1+'Rate of change'!$N$16) -> 3.755752182 | O40: =O39*(1+'Rate of change'!$N$16) -> 4.110457194 | P40: =P39*(1+'Rate of change'!$N$16) -> 4.124074833 | Q40: =Q39*(1+'Rate of change'!$N$16) -> 4.135279291 | R40: =R39*(1+'Rate of change'!$N$16) -> 4.134463425 | S40: =S39*(1+'Rate of change'!$N$16) -> 4.128745165 | U40: =SUM(O40:S40) -> 20.63301991
C42: Total opex | D42: Calculated | E42: $ millions | F42: Real FY19 | G42: Year-end | N42: =N29+N40 -> 57.86934665 | O42: 59.26055937 | P42: 60.46712161 | Q42: 61.80602977 | R42: 63.0802386 | S42: 64.23896318 | U42: =SUM(O42:S42) -> 308.8529125
C44: % change | N44: =N42/M29-1 -> 0.0923269912 | O44: 0.09511408279 | P44: 0.09640996516 | Q44: 0.09695931101 | R44: 0.09379950971 | S44: 0.08979758087
A46: Dist PTRM Input => | C46: Distribution allocation | E46: $ millions | F46: Real FY19 | G46: Year-end | N46: ='SCS_Distribution opex forecast'!N42 -> 49.9463234 | O46: ='SCS_Distribution opex forecast'!O42 -> 51.18577621 | P46: ='SCS_Distribution opex forecast'!P42 -> 52.21767387 | Q46: ='SCS_Distribution opex forecast'!Q42 -> 53.36218675 | R46: ='SCS_Distribution opex forecast'!R42 -> 54.44971328 | S46: ='SCS_Distribution opex forecast'!S42 -> 55.43794637 | U46: =SUM(O46:S46) -> 266.6532965
A47: Trans PTRM Input => | C47: Transmission allocation | E47: $ millions | F47: Real FY19 | G47: Year-end | N47: ='SCS_Transmission opex forecast'!N42 -> 7.923023246 | O47: ='SCS_Transmission opex forecast'!O42 -> 8.074783164 | P47: ='SCS_Transmission opex forecast'!P42 -> 8.249447735 | Q47: ='SCS_Transmission opex forecast'!Q42 -> 8.443843014 | R47: ='SCS_Transmission opex forecast'!R42 -> 8.630525315 | S47: ='SCS_Transmission opex forecast'!S42 -> 8.801016812 | U47: 42.19961604
C48: check | N48: =SUM(N46+N47-N42) -> 7.105427358e-15 | O48: =SUM(O46+O47-O42) -> 7.105427358e-15 | P48: 7.105427358e-15 | Q48: 7.105427358e-15 | R48: 0 | S48: 0
C50: Total opex | D50: Calculated | E50: $ millions | F50: Nominal | N50: =N42*'Rate of change'!N28 -> 57.2991914 | O50: =O42*'Rate of change'!O28 -> 58.5334084 | P50: =P42*'Rate of change'!P28 -> 61.21829477 | Q50: =Q42*'Rate of change'!Q28 -> 64.13818187 | R50: =R42*'Rate of change'!R28 -> 67.09698272 | S50: =S42*'Rate of change'!S28 -> 70.03772839 | U50: =SUM(O50:S50) -> 321.0245962
C52: $Real June 2018 | M52: ="FY"&RIGHT(M$5,2) -> FY18 | N52: FY19 | O52: FY20 | P52: FY21 | Q52: FY22 | R52: FY23 | S52: FY24
C53: Base opex | D53: Calculated | E53: $ millions | F53: Real FY18 | G53: Year-end | M53: =M28 -> 51.93925815 | N53: =$M$28 -> 51.93925815 | O53: =$M$28 -> 51.93925815 | P53: =$M$28 -> 51.93925815 | Q53: 51.93925815 | R53: 51.93925815 | S53: 51.93925815 | U53: =SUM(O53:S53) -> 259.6962907
C54: Real price growth | D54: Calculated | E54: $ millions | F54: Real FY18 | G54: Year-end | M54: 0 | N54: =N53*N22 -> 0.2289104838 | O54: ='Rate of change'!O128 -> 0.4079837999 | P54: ='Rate of change'!P128 -> 0.7647870878 | Q54: ='Rate of change'!Q128 -> 1.274541125 | R54: ='Rate of change'!R128 -> 1.783861428 | S54: ='Rate of change'!S128 -> 2.225276754 | U54: =SUM(O54:S54) -> 6.456450195
C55: Output growth | D55: Calculated | E55: $ millions | F55: Real FY18 | G55: Year-end | M55: 0 | N55: ='Rate of change'!N129 -> 0.8843749636 | O55: ='Rate of change'!O129 -> 1.721485677 | P55: ='Rate of change'!P129 -> 2.534235914 | Q55: ='Rate of change'!Q129 -> 3.326152176 | R55: ='Rate of change'!R129 -> 4.066856083 | S55: ='Rate of change'!S129 -> 4.767051391 | U55: 16.41578124
C56: Productivity growth | D56: Calculated | E56: $ millions | F56: Real FY18 | G56: Year-end | M56: 0 | N56: ='Rate of change'!N130 -> 0 | O56: ='Rate of change'!O130 -> 0 | P56: ='Rate of change'!P130 -> 0 | Q56: ='Rate of change'!Q130 -> 0 | R56: ='Rate of change'!R130 -> 0 | S56: ='Rate of change'!S130 -> 0 | U56: 0
C57: Step changes | D57: Calculated | E57: $ millions | F57: Real FY18 | G57: Year-end | M57: 0 | N57: =N39 -> 3.682109982 | O57: 4.029859994 | P57: 4.043210621 | Q57: 4.054195383 | R57: 4.053395515 | S57: 4.047789378 | U57: 20.22845089
C58: Total SCS opex | D58: Calculated | E58: $ millions | F58: Real FY18 | G58: Year-end | M58: =SUM(M53:M57) -> 51.93925815 | N58: =SUM(N53:N57) -> 56.73465358 | O58: 58.09858762 | P58: 59.28149177 | Q58: 60.59414683 | R58: 61.84337117 | S58: 62.97937567 | U58: =SUM(O58:S58) -> 302.7969731
C59: Total SCS opex | D59: Calculated | E59: $ millions | F59: Real FY19 | G59: Year-end | M59: =M58*(1+'Rate of change'!$N$16) -> 52.97804331 | N59: =N58*(1+'Rate of change'!$N$16) -> 57.86934665 | O59: =O58*(1+'Rate of change'!$N$16) -> 59.26055937 | P59: =P58*(1+'Rate of change'!$N$16) -> 60.46712161 | Q59: =Q58*(1+'Rate of change'!$N$16) -> 61.80602977 | R59: =R58*(1+'Rate of change'!$N$16) -> 63.0802386 | S59: =S58*(1+'Rate of change'!$N$16) -> 64.23896318 | U59: =SUM(O59:S59) -> 308.8529125
C61: $Real June 2019 | N61: FY16 | O61: FY17 | P61: FY18 | Q61: FY19 | R61: FY20 | S61: FY21
C62: Base opex | D62: Calculated | E62: $ millions | F62: Real FY19 | G62: Year-end | N62: =N53*(1+'Rate of change'!$N$16) -> 52.97804331 | O62: =O53*(1+'Rate of change'!$N$16) -> 52.97804331 | P62: =P53*(1+'Rate of change'!$N$16) -> 52.97804331 | Q62: =Q53*(1+'Rate of change'!$N$16) -> 52.97804331 | R62: =R53*(1+'Rate of change'!$N$16) -> 52.97804331 | S62: =S53*(1+'Rate of change'!$N$16) -> 52.97804331 | U62: =SUM(O62:S62) -> 264.8902166
C63: Real price growth | D63: Calculated | E63: $ millions | F63: Real FY19 | G63: Year-end | N63: =N54*(1+'Rate of change'!$N$16) -> 0.2334886935 | O63: =O54*(1+'Rate of change'!$N$16) -> 0.4161434759 | P63: =P54*(1+'Rate of change'!$N$16) -> 0.7800828296 | Q63: =Q54*(1+'Rate of change'!$N$16) -> 1.300031947 | R63: =R54*(1+'Rate of change'!$N$16) -> 1.819538657 | S63: =S54*(1+'Rate of change'!$N$16) -> 2.269782289 | U63: 6.585579199
C64: Output growth | D64: Calculated | E64: $ millions | F64: Real FY19 | G64: Year-end | N64: =N55*(1+'Rate of change'!$N$16) -> 0.9020624629 | O64: =O55*(1+'Rate of change'!$N$16) -> 1.75591539 | P64: =P55*(1+'Rate of change'!$N$16) -> 2.584920632 | Q64: =Q55*(1+'Rate of change'!$N$16) -> 3.392675219 | R64: =R55*(1+'Rate of change'!$N$16) -> 4.148193204 | S64: =S55*(1+'Rate of change'!$N$16) -> 4.862392419 | U64: 16.74409687
C65: Productivity growth | D65: Calculated | E65: $ millions | F65: Real FY19 | G65: Year-end | N65: =N56*(1+'Rate of change'!$N$16) -> 0 | O65: =O56*(1+'Rate of change'!$N$16) -> 0 | P65: =P56*(1+'Rate of change'!$N$16) -> 0 | Q65: =Q56*(1+'Rate of change'!$N$16) -> 0 | R65: =R56*(1+'Rate of change'!$N$16) -> 0 | S65: =S56*(1+'Rate of change'!$N$16) -> 0 | U65: 0
C66: Step changes | D66: Calculated | E66: $ millions | F66: Real FY19 | G66: Year-end | N66: =N57*(1+'Rate of change'!$N$16) -> 3.755752182 | O66: =O57*(1+'Rate of change'!$N$16) -> 4.110457194 | P66: =P57*(1+'Rate of change'!$N$16) -> 4.124074833 | Q66: =Q57*(1+'Rate of change'!$N$16) -> 4.135279291 | R66: =R57*(1+'Rate of change'!$N$16) -> 4.134463425 | S66: =S57*(1+'Rate of change'!$N$16) -> 4.128745165 | U66: 20.63301991
C67: Total SCS opex | D67: Calculated | E67: $ millions | F67: Real FY19 | G67: Year-end | N67: =N58*(1+'Rate of change'!$N$16) -> 57.86934665 | O67: =O58*(1+'Rate of change'!$N$16) -> 59.26055937 | P67: =P58*(1+'Rate of change'!$N$16) -> 60.46712161 | Q67: =Q58*(1+'Rate of change'!$N$16) -> 61.80602977 | R67: =R58*(1+'Rate of change'!$N$16) -> 63.0802386 | S67: =S58*(1+'Rate of change'!$N$16) -> 64.23896318 | U67: 308.8529125

Sheet SCS_Distribution opex forecast
A1: Evoenergy Electricity Distribution Deterimation 2019-24
A2: Opex model
A3: Distribution
A4: Forecast | M4: Base year | N4: Final year | O4: 2019-24 regulatory control period
D5: Source | E5: Unit | F5: Basis | G5: Timing | L5: FY ending June | M5: =2018 -> 2018 | N5: =M5+1 -> 2019 | O5: 2020 | P5: 2021 | Q5: 2022 | R5: 2023 | S5: 2024 | U5: Total
B9: Calc | Operating expenditure
M11: Actual/Forecast | N11: Forecast | O11: Forecast | P11: Forecast | Q11: Forecast | R11: Forecast | S11: Forecast
C12: Opex | D12: Source | E12: Unit | F12: Basis | M12: ="FY"&RIGHT(M$5,2) -> FY18 | N12: ="FY"&RIGHT(N$5,2) -> FY19 | O12: FY20 | P12: FY21 | Q12: FY22 | R12: FY23 | S12: FY24
C14: Base opex
C15: Total opex | E15: $ millions | F15: Nominal | G15: Mid-year | M15: 47.26678152
B16: Adjustments | E16: $ millions | F16: Nominal | G16: Mid-year
C17: Power of Choice (Likely Pass Through) | E17: $ millions | F17: Nominal | G17: Mid-year | M17: -1.19163178
C18: Ring Fencing Implementation (Likely Pass Through) | E18: $ millions | F18: Nominal | G18: Mid-year | M18: -2.17736478
C19: Adjusted base opex | E19: $ millions | F19: Nominal | G19: Mid-year | M19: =SUM(M15:M18) -> 43.89778496
C21: Rate of change
C22: Real input price growth | D22: Rate of change | E22: per cent | F22: n/a | N22: ='Rate of change'!N103 -> 0.004407272879 | O22: ='Rate of change'!O103 -> 0.003408309293 | P22: ='Rate of change'!P103 -> 0.006732526423 | Q22: ='Rate of change'!Q103 -> 0.009467659081 | R22: ='Rate of change'!R103 -> 0.009268497114 | S22: ='Rate of change'!S103 -> 0.007872606348
C23: Output growth | D23: Rate of change | E23: per cent | F23: n/a | N23: ='Rate of change'!N104 -> 0.01702710041 | O23: ='Rate of change'!O104 -> 0.01574598493 | P23: ='Rate of change'!P104 -> 0.01489834186 | Q23: ='Rate of change'!Q104 -> 0.01409698253 | R23: ='Rate of change'!R104 -> 0.01284019202 | S23: ='Rate of change'!S104 -> 0.01188186875
C24: Productivity growth | D24: Rate of change | E24: per cent | F24: n/a | N24: ='Rate of change'!N105 -> 0 | O24: ='Rate of change'!O105 -> 0 | P24: ='Rate of change'!P105 -> 0 | Q24: ='Rate of change'!Q105 -> 0 | R24: ='Rate of change'!R105 -> 0 | S24: ='Rate of change'!S105 -> 0
C25: Rate of change | D25: Calculated | E25: per cent | F25: n/a | N25: =N22+N23-N24 -> 0.02143437329 | O25: =O22+O23-O24 -> 0.01915429422 | P25: 0.02163086828 | Q25: 0.02356464161 | R25: 0.02210868913 | S25: 0.01975447509
C28: Base opex - Distribution | D28: Calculated | F28: Real FY18 | G28: Year-end | M28: =SUM(M15:M18)/'Rate of change'!$M$26 -> 44.3345896 | N28: =M28*(1+N$25) -> 45.28487375 | O28: =N28*(1+O$25) -> 46.15227354 | P28: =O28*(1+P$25) -> 47.15058729 | Q28: 48.26167398 | R28: 49.32867633 | S28: 50.30313844 | U28: =SUM(O28:S28) -> 241.1963496
C29: Base opex - Distribution | D29: Calculated | F29: Real FY19 | G29: Year-end | M29: =M28*(1+'Rate of change'!$N$16) -> 45.22128139 | N29: =N28*(1+'Rate of change'!$N$16) -> 46.19057122 | O29: =O28*(1+'Rate of change'!$N$16) -> 47.07531901 | P29: =P28*(1+'Rate of change'!$N$16) -> 48.09359904 | Q29: =Q28*(1+'Rate of change'!$N$16) -> 49.22690746 | R29: =R28*(1+'Rate of change'!$N$16) -> 50.31524986 | S29: =S28*(1+'Rate of change'!$N$16) -> 51.30920121 | U29: =SUM(O29:S29) -> 246.0202766
C33: Step changes
M35: FY15 | N35: ="FY"&RIGHT(N$5,2) -> FY19 | O35: ="FY"&RIGHT(O$5,2) -> FY20 | P35: FY21 | Q35: FY22 | R35: FY23 | S35: FY24
C36: Vegetation and private electrical infrastructure responsibilities | E36: $ millions | F36: Real FY18 | G36: Year-end | N36: 3.682109982 | O36: 3.678447829 | P36: 3.690634253 | Q36: 3.700661121 | R36: 3.699931003 | S36: 3.694813732 | U36: =SUM(O36:S36) -> 18.46448794
C37: Strathnairn demand management opex capex trade-off | E37: $ millions | F37: Real FY19 | G37: Year-end | N37: 0 | O37: 0.3514121659 | P37: 0.3525763682 | Q37: 0.3535342623 | R37: 0.3534645121 | S37: 0.3529756453 | U37: =SUM(O37:S37) -> 1.763962954
C39: Total step changes | D39: Calculated | E39: $ millions | F39: Real FY18 | G39: Year-end | N39: =SUM(N36:N37) -> 3.682109982 | O39: 4.029859994 | P39: 4.043210621 | Q39: 4.054195383 | R39: 4.053395515 | S39: 4.047789378 | U39: =SUM(O39:S39) -> 20.22845089
C40: Total step changes | D40: Calculated | E40: $ millions | F40: Real FY19 | G40: Year-end | N40: =N39*(1+'Rate of change'!$N$16) -> 3.755752182 | O40: =O39*(1+'Rate of change'!$N$16) -> 4.110457194 | P40: =P39*(1+'Rate of change'!$N$16) -> 4.124074833 | Q40: =Q39*(1+'Rate of change'!$N$16) -> 4.135279291 | R40: =R39*(1+'Rate of change'!$N$16) -> 4.134463425 | S40: =S39*(1+'Rate of change'!$N$16) -> 4.128745165 | U40: =SUM(O40:S40) -> 20.63301991
C42: Total Distribution opex | D42: Calculated | F42: Real FY19 | G42: Year-end | N42: =N29+N40 -> 49.9463234 | O42: 51.18577621 | P42: 52.21767387 | Q42: 53.36218675 | R42: 54.44971328 | S42: 55.43794637 | U42: =SUM(O42:S42) -> 266.6532965
C44: % change | N44: =N42/M29-1 -> 0.1044871322 | O44: 0.1081433906 | P44: 0.1092367501 | Q44: 0.1095486265 | R44: 0.1060965656 | S44: 0.1018120059
C46: Total opex | D46: Calculated | F46: Nominal | N46: =N42*'Rate of change'!N28 -> 49.4542294 | O46: =O42*'Rate of change'!O28 -> 50.55770609 | P46: =P42*'Rate of change'!P28 -> 52.8663655 | Q46: =Q42*'Rate of change'!Q28 -> 55.37572389 | R46: =R42*'Rate of change'!R28 -> 57.91689366 | S46: =S42*'Rate of change'!S28 -> 60.44225557 | U46: =SUM(O46:S46) -> 277.1589447
C48: $Real June 2018 | N48: ="FY"&RIGHT(N$5,2) -> FY19 | O48: FY20 | P48: FY21 | Q48: FY22 | R48: FY23 | S48: FY24
C49: Base opex | D49: Calculated | E49: $ millions | F49: Real FY18 | G49: Year-end | N49: =$M$28 -> 44.3345896 | O49: =$M$28 -> 44.3345896 | P49: =$M$28 -> 44.3345896 | Q49: 44.3345896 | R49: 44.3345896 | S49: 44.3345896 | U49: =SUM(O49:S49) -> 221.672948
C50: Real price growth | D50: Calculated | E50: $ millions | F50: Real FY18 | G50: Year-end | N50: ='Rate of change'!N149 -> 0.1953946344 | O50: ='Rate of change'!O149 -> 0.3482489928 | P50: ='Rate of change'!P149 -> 0.6528110505 | Q50: ='Rate of change'!Q149 -> 1.087929626 | R50: ='Rate of change'!R149 -> 1.522677973 | S50: ='Rate of change'!S149 -> 1.899463627 | U50: =SUM(O50:S50) -> 5.51113127
C51: Output growth | D51: Calculated | E51: $ millions | F51: Real FY18 | G51: Year-end | N51: ='Rate of change'!N150 -> 0.7548895088 | O51: ='Rate of change'!O150 -> 1.469434946 | P51: ='Rate of change'!P150 -> 2.163186638 | Q51: ='Rate of change'!Q150 -> 2.839154754 | R51: ='Rate of change'!R150 -> 3.471408754 | S51: ='Rate of change'!S150 -> 4.069085208 | U51: 14.0122703
C52: Productivity growth | D52: Calculated | E52: $ millions | F52: Real FY18 | G52: Year-end | N52: ='Rate of change'!N151 -> 0 | O52: ='Rate of change'!O151 -> 0 | P52: ='Rate of change'!P151 -> 0 | Q52: ='Rate of change'!Q151 -> 0 | R52: ='Rate of change'!R151 -> 0 | S52: ='Rate of change'!S151 -> 0 | U52: 0
C53: Step changes | D53: Calculated | E53: $ millions | F53: Real FY18 | G53: Year-end | N53: =N39 -> 3.682109982 | O53: 4.029859994 | P53: 4.043210621 | Q53: 4.054195383 | R53: 4.053395515 | S53: 4.047789378 | U53: 20.22845089
C54: Total Distribution opex | D54: Calculated | E54: $ millions | F54: Real FY18 | G54: Year-end | N54: =SUM(N49:N53) -> 48.96698373 | O54: 50.18213354 | P54: 51.19379791 | Q54: 52.31586937 | R54: 53.38207184 | S54: 54.35092782 | U54: =SUM(O54:S54) -> 261.4248005
C55: Total Distribution opex | D55: Calculated | E55: $ millions | F55: Real FY19 | G55: Year-end | N55: =N54*(1+'Rate of change'!$N$16) -> 49.9463234 | O55: =O54*(1+'Rate of change'!$N$16) -> 51.18577621 | P55: =P54*(1+'Rate of change'!$N$16) -> 52.21767387 | Q55: =Q54*(1+'Rate of change'!$N$16) -> 53.36218675 | R55: =R54*(1+'Rate of change'!$N$16) -> 54.44971328 | S55: =S54*(1+'Rate of change'!$N$16) -> 55.43794637 | U55: =SUM(O55:S55) -> 266.6532965
C57: $Real June 2019 | N57: ="FY"&RIGHT(N$5,2) -> FY19 | O57: FY20 | P57: FY21 | Q57: FY22 | R57: FY23 | S57: FY24
C58: Base opex | D58: Calculated | E58: $ millions | F58: Real FY19 | G58: Year-end | N58: =N49*(1+'Rate of change'!$N$16) -> 45.22128139 | O58: =O49*(1+'Rate of change'!$N$16) -> 45.22128139 | P58: =P49*(1+'Rate of change'!$N$16) -> 45.22128139 | Q58: =Q49*(1+'Rate of change'!$N$16) -> 45.22128139 | R58: =R49*(1+'Rate of change'!$N$16) -> 45.22128139 | S58: =S49*(1+'Rate of change'!$N$16) -> 45.22128139 | U58: =SUM(O58:S58) -> 226.106407
C59: Real price growth | D59: Calculated | E59: $ millions | F59: Real FY19 | G59: Year-end | N59: =N50*(1+'Rate of change'!$N$16) -> 0.1993025271 | O59: =O50*(1+'Rate of change'!$N$16) -> 0.3552139726 | P59: =P50*(1+'Rate of change'!$N$16) -> 0.6658672715 | Q59: =Q50*(1+'Rate of change'!$N$16) -> 1.109688219 | R59: =R50*(1+'Rate of change'!$N$16) -> 1.553131533 | S59: =S50*(1+'Rate of change'!$N$16) -> 1.937452899 | U59: 5.621353895
C60: Output growth | D60: Calculated | E60: $ millions | F60: Real FY19 | G60: Year-end | N60: =N51*(1+'Rate of change'!$N$16) -> 0.7699872989 | O60: =O51*(1+'Rate of change'!$N$16) -> 1.498823645 | P60: =P51*(1+'Rate of change'!$N$16) -> 2.206450371 | Q60: =Q51*(1+'Rate of change'!$N$16) -> 2.895937849 | R60: =R51*(1+'Rate of change'!$N$16) -> 3.540836929 | S60: =S51*(1+'Rate of change'!$N$16) -> 4.150466912 | U60: 14.29251571
C61: Productivity growth | D61: Calculated | E61: $ millions | F61: Real FY19 | G61: Year-end | N61: =N52*(1+'Rate of change'!$N$16) -> 0 | O61: =O52*(1+'Rate of change'!$N$16) -> 0 | P61: =P52*(1+'Rate of change'!$N$16) -> 0 | Q61: =Q52*(1+'Rate of change'!$N$16) -> 0 | R61: =R52*(1+'Rate of change'!$N$16) -> 0 | S61: =S52*(1+'Rate of change'!$N$16) -> 0 | U61: 0
C62: Step changes | D62: Calculated | E62: $ millions | F62: Real FY19 | G62: Year-end | N62: =N53*(1+'Rate of change'!$N$16) -> 3.755752182 | O62: =O53*(1+'Rate of change'!$N$16) -> 4.110457194 | P62: =P53*(1+'Rate of change'!$N$16) -> 4.124074833 | Q62: =Q53*(1+'Rate of change'!$N$16) -> 4.135279291 | R62: =R53*(1+'Rate of change'!$N$16) -> 4.134463425 | S62: =S53*(1+'Rate of change'!$N$16) -> 4.128745165 | U62: 20.63301991
C63: Total Distribution opex | D63: Calculated | E63: $ millions | F63: Real FY19 | G63: Year-end | N63: =N54*(1+'Rate of change'!$N$16) -> 49.9463234 | O63: =O54*(1+'Rate of change'!$N$16) -> 51.18577621 | P63: =P54*(1+'Rate of change'!$N$16) -> 52.21767387 | Q63: =Q54*(1+'Rate of change'!$N$16) -> 53.36218675 | R63: =R54*(1+'Rate of change'!$N$16) -> 54.44971328 | S63: =S54*(1+'Rate of change'!$N$16) -> 55.43794637 | U63: 266.6532965

Sheet SCS_Transmission opex forecast
A1: Evoenergy Electricity Distribution Deterimation 2019-24
A2: Opex model
A3: Transmisson
A4: Forecast | M4: Base year | N4: Final year | O4: 2019-24 regulatory control period
D5: Source | E5: Unit | F5: Basis | G5: Timing | L5: FY ending June | M5: =2018 -> 2018 | N5: =M5+1 -> 2019 | O5: 2020 | P5: 2021 | Q5: 2022 | R5: 2023 | S5: 2024 | U5: Total
B9: Calc | Operating expenditure
M11: Actual | N11: Forecast | O11: Forecast | P11: Forecast | Q11: Forecast | R11: Forecast | S11: Forecast
C12: Opex | D12: Source | E12: Unit | F12: Basis | M12: ="FY"&RIGHT(M$5,2) -> FY18 | N12: ="FY"&RIGHT(N$5,2) -> FY19 | O12: FY20 | P12: FY21 | Q12: FY22 | R12: FY23 | S12: FY24
C14: Base opex
C15: Total opex | E15: $ millions | F15: Nominal | G15: Mid-year | M15: 7.529743874
B16: Adjustments | E16: $ millions | F16: Nominal | G16: Mid-year
C17: Power of Choice (Likely Pass Through) | E17: $ millions | F17: Nominal | G17: Mid-year | M17: 0
C18: Ring Fencing Implementation (Likely Pass Through) | E18: $ millions | F18: Nominal | G18: Mid-year | M18: 0
C19: Adjusted base opex | E19: $ millions | F19: Nominal | G19: Mid-year | M19: =SUM(M15:M18) -> 7.529743874
C21: Rate of change
C22: Real input price growth | D22: Rate of change | E22: per cent | F22: n/a | N22: ='Rate of change'!N103 -> 0.004407272879 | O22: ='Rate of change'!O103 -> 0.003408309293 | P22: ='Rate of change'!P103 -> 0.006732526423 | Q22: ='Rate of change'!Q103 -> 0.009467659081 | R22: ='Rate of change'!R103 -> 0.009268497114 | S22: ='Rate of change'!S103 -> 0.007872606348
C23: Output growth | D23: Rate of change | E23: per cent | F23: n/a | N23: ='Rate of change'!N104 -> 0.01702710041 | O23: ='Rate of change'!O104 -> 0.01574598493 | P23: ='Rate of change'!P104 -> 0.01489834186 | Q23: ='Rate of change'!Q104 -> 0.01409698253 | R23: ='Rate of change'!R104 -> 0.01284019202 | S23: ='Rate of change'!S104 -> 0.01188186875
C24: Productivity growth | D24: Rate of change | E24: per cent | F24: n/a | N24: ='Rate of change'!N105 -> 0 | O24: ='Rate of change'!O105 -> 0 | P24: ='Rate of change'!P105 -> 0 | Q24: ='Rate of change'!Q105 -> 0 | R24: ='Rate of change'!R105 -> 0 | S24: ='Rate of change'!S105 -> 0
C25: Rate of change | D25: Calculated | E25: per cent | F25: n/a | N25: =N22+N23-N24 -> 0.02143437329 | O25: =O22+O23-O24 -> 0.01915429422 | P25: 0.02163086828 | Q25: 0.02356464161 | R25: 0.02210868913 | S25: 0.01975447509
C28: Base opex - Transmission | D28: Calculated | F28: Real FY18 | G28: Year-end | M28: =SUM(M15:M18)/'Rate of change'!$M$26 -> 7.604668544 | N28: =M28*(1+N$25) -> 7.767669849 | O28: =N28*(1+O$25) -> 7.916454082 | P28: =O28*(1+P$25) -> 8.087693858 | Q28: 8.278277465 | R28: 8.461299328 | S28: 8.628447855 | U28: =SUM(O28:S28) -> 41.37217259
C29: Base opex - Transmission | D29: Calculated | F29: Real FY19 | G29: Year-end | M29: =M28*(1+'Rate of change'!$N$16) -> 7.756761915 | N29: =N28*(1+'Rate of change'!$N$16) -> 7.923023246 | O29: =O28*(1+'Rate of change'!$N$16) -> 8.074783164 | P29: =P28*(1+'Rate of change'!$N$16) -> 8.249447735 | Q29: =Q28*(1+'Rate of change'!$N$16) -> 8.443843014 | R29: =R28*(1+'Rate of change'!$N$16) -> 8.630525315 | S29: =S28*(1+'Rate of change'!$N$16) -> 8.801016812 | U29: =SUM(O29:S29) -> 42.19961604
C33: Step changes
M35: FY15 | N35: ="FY"&RIGHT(N$5,2) -> FY19 | O35: ="FY"&RIGHT(O$5,2) -> FY20 | P35: FY21 | Q35: FY22 | R35: FY23 | S35: FY24
E36: $ millions | F36: Real FY18 | G36: Year-end | U36: =SUM(O36:S36) -> 0
E37: $ millions | F37: Real FY19 | G37: Year-end | U37: =SUM(O37:S37) -> 0
C39: Total step changes | D39: Calculated | E39: $ millions | F39: Real FY18 | G39: Year-end | N39: =SUM(N36:N37) -> 0 | O39: 0 | P39: 0 | Q39: 0 | R39: 0 | S39: 0 | U39: =SUM(O39:S39) -> 0
C40: Total step changes | D40: Calculated | E40: $ millions | F40: Real FY19 | G40: Year-end | N40: =N39*(1+'Rate of change'!$N$16) -> 0 | O40: =O39*(1+'Rate of change'!$N$16) -> 0 | P40: =P39*(1+'Rate of change'!$N$16) -> 0 | Q40: =Q39*(1+'Rate of change'!$N$16) -> 0 | R40: =R39*(1+'Rate of change'!$N$16) -> 0 | S40: =S39*(1+'Rate of change'!$N$16) -> 0 | U40: =SUM(O40:S40) -> 0
C42: Total Transmission opex | D42: Calculated | E42: $ millions | F42: Real FY19 | G42: Year-end | N42: =N29+N40 -> 7.923023246 | O42: 8.074783164 | P42: 8.249447735 | Q42: 8.443843014 | R42: 8.630525315 | S42: 8.801016812 | U42: =SUM(O42:S42) -> 42.19961604
C44: % change | N44: =N42/M29-1 -> 0.02143437329 | O44: 0.01915429422 | P44: 0.02163086828 | Q44: 0.02356464161 | R44: 0.02210868913 | S44: 0.01975447509
C46: Total opex | D46: Calculated | F46: Nominal | N46: =N42*'Rate of change'!N28 -> 7.844962 | O46: =O42*'Rate of change'!O28 -> 7.975702318 | P46: =P42*'Rate of change'!P28 -> 8.351929276 | Q46: =Q42*'Rate of change'!Q28 -> 8.762457984 | R46: =R42*'Rate of change'!R28 -> 9.180089054 | S46: =S42*'Rate of change'!S28 -> 9.595472817 | U46: =SUM(O46:S46) -> 43.86565145
C48: $Real June 2018 | N48: ="FY"&RIGHT(N$5,2) -> FY19 | O48: FY20 | P48: FY21 | Q48: FY22 | R48: FY23 | S48: FY24
C49: Base opex | D49: Calculated | E49: $ millions | F49: Real FY18 | G49: Year-end | N49: =$M$28 -> 7.604668544 | O49: =$M$28 -> 7.604668544 | P49: =$M$28 -> 7.604668544 | Q49: 7.604668544 | R49: 7.604668544 | S49: 7.604668544 | U49: =SUM(O49:S49) -> 38.02334272
C50: Real price growth | D50: Calculated | E50: $ millions | F50: Real FY18 | G50: Year-end | N50: ='Rate of change'!N170 -> 0.03351584943 | O50: ='Rate of change'!O170 -> 0.05973480717 | P50: ='Rate of change'!P170 -> 0.1119760373 | Q50: ='Rate of change'!Q170 -> 0.1866114986 | R50: ='Rate of change'!R170 -> 0.2611834549 | S50: ='Rate of change'!S170 -> 0.3258131275 | U50: =SUM(O50:S50) -> 0.9453189256
C51: Output growth | D51: Calculated | E51: $ millions | F51: Real FY18 | G51: Year-end | N51: ='Rate of change'!N171 -> 0.1294854549 | O51: ='Rate of change'!O171 -> 0.2520507308 | P51: ='Rate of change'!P171 -> 0.3710492762 | Q51: ='Rate of change'!Q171 -> 0.4869974221 | R51: ='Rate of change'!R171 -> 0.5954473289 | S51: ='Rate of change'!S171 -> 0.6979661831 | U51: 2.403510941
C52: Productivity growth | D52: Calculated | E52: $ millions | F52: Real FY18 | G52: Year-end | N52: ='Rate of change'!N172 -> 0 | O52: ='Rate of change'!O172 -> 0 | P52: ='Rate of change'!P172 -> 0 | Q52: ='Rate of change'!Q172 -> 0 | R52: ='Rate of change'!R172 -> 0 | S52: ='Rate of change'!S172 -> 0 | U52: 0
C53: Step changes | D53: Calculated | E53: $ millions | F53: Real FY18 | G53: Year-end | N53: =N39 -> 0 | O53: 0 | P53: 0 | Q53: 0 | R53: 0 | S53: 0 | U53: 0
C54: Total Transmission opex | D54: Calculated | E54: $ millions | F54: Real FY18 | G54: Year-end | N54: =SUM(N49:N53) -> 7.767669849 | O54: 7.916454082 | P54: 8.087693858 | Q54: 8.278277465 | R54: 8.461299328 | S54: 8.628447855 | U54: =SUM(O54:S54) -> 41.37217259
C55: Total Transmission opex | D55: Calculated | E55: $ millions | F55: Real FY19 | G55: Year-end | N55: =N54*(1+'Rate of change'!$N$16) -> 7.923023246 | O55: =O54*(1+'Rate of change'!$N$16) -> 8.074783164 | P55: =P54*(1+'Rate of change'!$N$16) -> 8.249447735 | Q55: =Q54*(1+'Rate of change'!$N$16) -> 8.443843014 | R55: =R54*(1+'Rate of change'!$N$16) -> 8.630525315 | S55: =S54*(1+'Rate of change'!$N$16) -> 8.801016812 | U55: =SUM(O55:S55) -> 42.19961604
C57: $Real June 2019 | N57: ="FY"&RIGHT(N$5,2) -> FY19 | O57: FY20 | P57: FY21 | Q57: FY22 | R57: FY23 | S57: FY24
C58: Base opex | D58: Calculated | E58: $ millions | F58: Real FY19 | G58: Year-end | N58: =N49*(1+'Rate of change'!$N$16) -> 7.756761915 | O58: =O49*(1+'Rate of change'!$N$16) -> 7.756761915 | P58: =P49*(1+'Rate of change'!$N$16) -> 7.756761915 | Q58: =Q49*(1+'Rate of change'!$N$16) -> 7.756761915 | R58: =R49*(1+'Rate of change'!$N$16) -> 7.756761915 | S58: =S49*(1+'Rate of change'!$N$16) -> 7.756761915 | U58: =SUM(O58:S58) -> 38.78380958
C59: Real price growth | D59: Calculated | E59: $ millions | F59: Real FY19 | G59: Year-end | N59: =N50*(1+'Rate of change'!$N$16) -> 0.03418616642 | O59: =O50*(1+'Rate of change'!$N$16) -> 0.06092950331 | P59: =P50*(1+'Rate of change'!$N$16) -> 0.1142155581 | Q59: =Q50*(1+'Rate of change'!$N$16) -> 0.1903437286 | R59: =R50*(1+'Rate of change'!$N$16) -> 0.266407124 | S59: =S50*(1+'Rate of change'!$N$16) -> 0.33232939 | U59: 0.9642253041
C60: Output growth | D60: Calculated | E60: $ millions | F60: Real FY19 | G60: Year-end | N60: =N51*(1+'Rate of change'!$N$16) -> 0.132075164 | O60: =O51*(1+'Rate of change'!$N$16) -> 0.2570917454 | P60: =P51*(1+'Rate of change'!$N$16) -> 0.3784702617 | Q60: =Q51*(1+'Rate of change'!$N$16) -> 0.4967373706 | R60: =R51*(1+'Rate of change'!$N$16) -> 0.6073562754 | S60: =S51*(1+'Rate of change'!$N$16) -> 0.7119255068 | U60: 2.45158116
C61: Productivity growth | D61: Calculated | E61: $ millions | F61: Real FY19 | G61: Year-end | N61: =N52*(1+'Rate of change'!$N$16) -> 0 | O61: =O52*(1+'Rate of change'!$N$16) -> 0 | P61: =P52*(1+'Rate of change'!$N$16) -> 0 | Q61: =Q52*(1+'Rate of change'!$N$16) -> 0 | R61: =R52*(1+'Rate of change'!$N$16) -> 0 | S61: =S52*(1+'Rate of change'!$N$16) -> 0 | U61: 0
C62: Step changes | D62: Calculated | E62: $ millions | F62: Real FY19 | G62: Year-end | N62: =N53*(1+'Rate of change'!$N$16) -> 0 | O62: =O53*(1+'Rate of change'!$N$16) -> 0 | P62: =P53*(1+'Rate of change'!$N$16) -> 0 | Q62: =Q53*(1+'Rate of change'!$N$16) -> 0 | R62: =R53*(1+'Rate of change'!$N$16) -> 0 | S62: =S53*(1+'Rate of change'!$N$16) -> 0 | U62: 0
C63: Total Transmission opex | D63: Calculated | E63: $ millions | F63: Real FY19 | G63: Year-end | N63: =N54*(1+'Rate of change'!$N$16) -> 7.923023246 | O63: =O54*(1+'Rate of change'!$N$16) -> 8.074783164 | P63: =P54*(1+'Rate of change'!$N$16) -> 8.249447735 | Q63: =Q54*(1+'Rate of change'!$N$16) -> 8.443843014 | R63: =R54*(1+'Rate of change'!$N$16) -> 8.630525315 | S63: =S54*(1+'Rate of change'!$N$16) -> 8.801016812 | U63: 42.19961604

Sheet Rate of change
C1: Evoenergy Electricity Distribution Deterimation 2019-24
C2: Opex model
C3: Rate of change | J3: 2014-19 regulatory period | O3: 2019-24 regulatory period
J4: Historical period | M4: Base year | N4: Forecast period
D5: Source | E5: Unit | I5: FY ending | J5: 2015 | K5: =J5+1 -> 2016 | L5: 2017 | M5: 2018 | N5: 2019 | O5: 2020 | P5: 2021 | Q5: 2022 | R5: 2023 | S5: 2024
B9: Input | Inflation
C11: Dollar conversion to year-end | D11: Calculated | I11: 0.5
C14: Inflation | N14: Forecast
I15: FY14 | J15: ="FY"&RIGHT(J$5,2) -> FY15 | K15: ="FY"&RIGHT(K$5,2) -> FY16 | L15: FY17 | M15: FY18 | N15: FY19 | O15: FY20 | P15: FY21 | Q15: FY22 | R15: FY23 | S15: FY24
C16: Inflation Rate | D16: ABS / RBA / AAD | E16: Per cent | I16: 0.02449888641 | J16: 0.02487922705 | K16: 0.01508366722 | L16: 0.01276990945 | M16: 0.02 | N16: 0.02 | O16: 0.025 | P16: 0.025 | Q16: 0.025 | R16: 0.025 | S16: 0.025
C18: Source (actuals): ABS, all groups CPI inflation, weighted average for the eight capital cities - average of four quarters to December on the average of the four quarters to the previous December
C19: Source (forecast): Based on the AER's approach of calculating the geometric average based on the inflation forecasts for two years sourced from the latest available Reserve Bank of Australia’s (RBA’s) Statement of monetary policy and the mid-point of the RBA’s target inflation band for eight years.
C20: CPI indexes (real to nominal)
C22: Real 2014 | D22: Calculated | E22: factor | I22: =1/(1+I$16)^Dollar_Conversion_Factor -> 0.9879711314 | J22: =I22*(1+I$16)^(1-Dollar_Conversion_Factor)*(1+J$16)^Dollar_Conversion_Factor -> 1.012363189 | K22: 1.032579766 | L22: 1.046959605 | M22: 1.064107259 | N22: 1.085389405 | O22: 1.109807349 | P22: 1.137552533 | Q22: 1.165991346 | R22: 1.19514113 | S22: 1.225019658
C23: Real 2015 | D23: Calculated | E23: factor | I23: =J23/((1+J$16)^Dollar_Conversion_Factor*(1+I$16)^(1-Dollar_Conversion_Factor)) -> 0.9639878586 | J23: =1/(1+J$16)^Dollar_Conversion_Factor -> 0.9877877925 | K23: =J23*(1+J$16)^(1-Dollar_Conversion_Factor)*(1+K$16)^Dollar_Conversion_Factor -> 1.007513606 | L23: =K23*(1+K$16)^(1-Dollar_Conversion_Factor)*(1+L$16)^Dollar_Conversion_Factor -> 1.02154437 | M23: =L23*(1+L$16)^(1-Dollar_Conversion_Factor)*(1+M$16)^Dollar_Conversion_Factor -> 1.038275761 | N23: =M23*(1+M$16)^(1-Dollar_Conversion_Factor)*(1+N$16)^Dollar_Conversion_Factor -> 1.059041276 | O23: =N23*(1+N$16)^(1-Dollar_Conversion_Factor)*(1+O$16)^Dollar_Conversion_Factor -> 1.082866468 | P23: =O23*(1+O$16)^(1-Dollar_Conversion_Factor)*(1+P$16)^Dollar_Conversion_Factor -> 1.10993813 | Q23: =P23*(1+P$16)^(1-Dollar_Conversion_Factor)*(1+Q$16)^Dollar_Conversion_Factor -> 1.137686583 | R23: =Q23*(1+Q$16)^(1-Dollar_Conversion_Factor)*(1+R$16)^Dollar_Conversion_Factor -> 1.166128748 | S23: =R23*(1+R$16)^(1-Dollar_Conversion_Factor)*(1+S$16)^Dollar_Conversion_Factor -> 1.195281967
C24: Real 2016 | D24: Calculated | E24: factor | I24: =J24/((1+J$16)^Dollar_Conversion_Factor*(1+I$16)^(1-Dollar_Conversion_Factor)) -> 0.9639878586 | J24: =1/(1+J$16)^Dollar_Conversion_Factor -> 0.9877877925 | K24: =1/(1+K$16)^Dollar_Conversion_Factor -> 0.9925424268 | L24: =K24*(1+K$16)^(1-Dollar_Conversion_Factor)*(1+L$16)^Dollar_Conversion_Factor -> 1.0063647 | M24: 1.02284747 | N24: 1.04330442 | O24: 1.06677558 | P24: 1.09344497 | Q24: 1.120781094 | R24: 1.148800622 | S24: 1.177520637
C25: Real 2017 | D25: Calculated | E25: factor | I25: =J25/((1+J$16)^Dollar_Conversion_Factor*(1+I$16)^(1-Dollar_Conversion_Factor)) -> 0.9496634511 | J25: =K25/((1+K$16)^Dollar_Conversion_Factor*(1+J$16)^(1-Dollar_Conversion_Factor)) -> 0.9731097292 | K25: =1/(1+K$16)^Dollar_Conversion_Factor -> 0.9925424268 | L25: =1/(1+L$16)^Dollar_Conversion_Factor -> 0.9936755532 | M25: =L25*(1+L$16)^(1-Dollar_Conversion_Factor)*(1+M$16)^Dollar_Conversion_Factor -> 1.009950494 | N25: 1.030149504 | O25: 1.053324719 | P25: 1.079657837 | Q25: 1.106649283 | R25: 1.134315515 | S25: 1.162673403
C26: Real 2018 | D26: Calculated | E26: factor | I26: =J26/((1+J$16)^Dollar_Conversion_Factor*(1+I$16)^(1-Dollar_Conversion_Factor)) -> 0.9376892444 | J26: =K26/((1+K$16)^Dollar_Conversion_Factor*(1+J$16)^(1-Dollar_Conversion_Factor)) -> 0.9608398908 | K26: =L26/((1+L$16)^Dollar_Conversion_Factor*(1+K$16)^(1-Dollar_Conversion_Factor)) -> 0.9800275636 | L26: =1/(1+L$16)^Dollar_Conversion_Factor -> 0.9936755532 | M26: =1/(1+M$16)^Dollar_Conversion_Factor -> 0.990147543 | N26: =M26*(1+M$16)^(1-Dollar_Conversion_Factor)*(1+N$16)^Dollar_Conversion_Factor -> 1.009950494 | O26: 1.032671293 | P26: 1.058488076 | Q26: 1.084950278 | R26: 1.112074034 | S26: 1.139875885
C27: Real 2019 | D27: Calculated | E27: factor | I27: 0.9193031808 | J27: =K27/((1+K$16)^Dollar_Conversion_Factor*(1+J$16)^(1-Dollar_Conversion_Factor)) -> 0.941999893 | K27: =L27/((1+L$16)^Dollar_Conversion_Factor*(1+K$16)^(1-Dollar_Conversion_Factor)) -> 0.9608113368 | L27: =M27/((1+M$16)^Dollar_Conversion_Factor*(1+L$16)^(1-Dollar_Conversion_Factor)) -> 0.9741917188 | M27: =1/(1+M$16)^Dollar_Conversion_Factor -> 0.990147543 | N27: =1/(1+N$16)^Dollar_Conversion_Factor -> 0.990147543 | O27: =N27*(1+N$16)^(1-Dollar_Conversion_Factor)*(1+O$16)^Dollar_Conversion_Factor -> 1.012422837 | P27: 1.037733407 | Q27: 1.063676743 | R27: 1.090268661 | S27: 1.117525378
C28: Real 2020 | D28: Calculated | E28: factor | I28: 0.9012776282 | J28: =K28/((1+K$16)^Dollar_Conversion_Factor*(1+J$16)^(1-Dollar_Conversion_Factor)) -> 0.9235293068 | K28: =L28/((1+L$16)^Dollar_Conversion_Factor*(1+K$16)^(1-Dollar_Conversion_Factor)) -> 0.9419718988 | L28: =M28/((1+M$16)^Dollar_Conversion_Factor*(1+L$16)^(1-Dollar_Conversion_Factor)) -> 0.9550899204 | M28: =N28/((1+N$16)^Dollar_Conversion_Factor*(1+M$16)^(1-Dollar_Conversion_Factor)) -> 0.9707328853 | N28: =1/(1+N$16)^Dollar_Conversion_Factor -> 0.990147543 | O28: =1/(1+O$16)^Dollar_Conversion_Factor -> 0.9877295966 | P28: =O28*(1+O$16)^(1-Dollar_Conversion_Factor)*(1+P$16)^Dollar_Conversion_Factor -> 1.012422837 | Q28: =P28*(1+P$16)^(1-Dollar_Conversion_Factor)*(1+Q$16)^Dollar_Conversion_Factor -> 1.037733407 | R28: =Q28*(1+Q$16)^(1-Dollar_Conversion_Factor)*(1+R$16)^Dollar_Conversion_Factor -> 1.063676743 | S28: =R28*(1+R$16)^(1-Dollar_Conversion_Factor)*(1+S$16)^Dollar_Conversion_Factor -> 1.090268661
B31: Real price change
E34: Unit | J34: Labour | K34: Other | L34: Total | M34: Check
C36: Benchmark labour / non-labour weights | D36: AER 2017 Annual benchmarking final report | E36: Per cent | J36: 0.597 | K36: =1-J36 -> 0.403 | L36: =SUM(J36:K36) -> 1 | M36: =IF(ROUND(($L36-1),7)=0,"Ok","Check") -> Ok
D40: Source | E40: Unit | M40: ="FY"&RIGHT(M$5,2) -> FY18 | N40: FY19 | O40: FY20 | P40: FY21 | Q40: FY22 | R40: FY23 | S40: FY24
C42: Annual price growth forecast
C43: EGWWS labour | D43: External | E43: Per cent | M43: ='ACT labour price forecast'!I30/100 -> 0.005704288097 | N43: ='ACT labour price forecast'!J30/100 -> 0.007382366632 | O43: ='ACT labour price forecast'!K30/100 -> 0.005667223273 | P43: ='ACT labour price forecast'!L30/100 -> 0.01113153599 | Q43: ='ACT labour price forecast'!M30/100 -> 0.01548146245 | R43: ='ACT labour price forecast'!N30/100 -> 0.01492473718 | S43: ='ACT labour price forecast'!O30/100 -> 0.01249056463
C44: Non-labour | D44: External | E44: Per cent | M44: 0 | N44: 0 | O44: 0 | P44: 0 | Q44: 0 | R44: 0 | S44: 0
C46: Cumulative factor
C47: =$C$43 -> EGWWS labour | D47: Calculated | E47: Factor | M47: 1 | N47: =M47*(1+N43) -> 1.007382367 | O47: 1.013091427 | P47: 1.024368691 | Q47: 1.040227417 | R47: 1.055752537 | S47: 1.068939483
C48: =$C$44 -> Non-labour | D48: Calculated | E48: Factor | M48: 1 | N48: 1 | O48: 1 | P48: 1 | Q48: 1 | R48: 1 | S48: 1
C53: Opex real price factor | D53: Calculated | E53: Factor | M53: =SUM($J$36*M47)+($K$36*M48) -> 1 | N53: 1.004407273 | O53: 1.007815582 | P53: 1.014548109 | Q53: 1.024015768 | R53: 1.033284265 | S53: 1.041156871
B57: Opex productivity and output growth
C59: Partial factor productivity | D59: Source | E59: Unit | M59: ="FY"&RIGHT(M$5,2) -> FY18 | N59: FY19 | O59: FY20 | P59: FY21 | Q59: FY22 | R59: FY23 | S59: FY24
C61: Partial factor productivity | E61: Per cent | M61: 0 | N61: 0 | O61: 0 | P61: 0 | Q61: 0 | R61: 0 | S61: 0
C66: Output growth factor weights
C68: Customer numbers | D68: Updated estimates derived using EI model (SFA CD) with updated 2015/16 dataset | E68: Per cent | I68: 0.745494017
C69: Circuit length | E69: Per cent | I69: 0.09314191328
C70: Ratcheted maximum demand | E70: Per cent | I70: 0.1613640698
D74: Source | E74: Unit | L74: ="FY"&RIGHT(L$5,2) -> FY17 | M74: FY18 | N74: FY19 | O74: FY20 | P74: FY21 | Q74: FY22 | R74: FY23 | S74: FY24
B75: Customer numbers
C76: Forecasts
C77: Customer numbers | D77: RIN Workbook 1 table 6.2.4 | E77: Number | L77: 189190.4932 | M77: 193508 | N77: 196642 | O77: 199875 | P77: 203145 | Q77: 206411 | R77: 209651 | S77: 212859
C78: Incremental customer numbers | D78: Calculated | E78: Number | M78: =M77-L77 -> 4317.506849 | N78: =N77-M77 -> 3134 | O78: =O77-N77 -> 3233 | P78: =P77-O77 -> 3270 | Q78: =Q77-P77 -> 3266 | R78: =R77-Q77 -> 3240 | S78: =S77-R77 -> 3208
C79: Customer growth rate | D79: Calculated | E79: Per cent | M79: =M77/L77-1 -> 0.02282095034 | N79: =N77/M77-1 -> 0.01619571284 | O79: =O77/N77-1 -> 0.01644104515 | P79: =P77/O77-1 -> 0.01636022514 | Q79: =Q77/P77-1 -> 0.01607718625 | R79: =R77/Q77-1 -> 0.01569683786 | S79: =S77/R77-1 -> 0.01530162031
B82: Circuit length
C83: Total mains | D83: RIN Workbook 1 table 3.5.1 | E83: kilometres | L83: 5333 | M83: 5380.3 | N83: 5410.3 | O83: 5452.5 | P83: 5493.7 | Q83: 5523.6 | R83: 5561.8 | S83: 5595.4
C84: Incremental mains | D84: Calculated | E84: kilometres | M84: =M83-L83 -> 47.3 | N84: =N83-M83 -> 30 | O84: =O83-N83 -> 42.2 | P84: =P83-O83 -> 41.2 | Q84: =Q83-P83 -> 29.9 | R84: =R83-Q83 -> 38.2 | S84: =S83-R83 -> 33.6
C85: Mains growth rate | D85: Calculated | E85: Per cent | M85: =M83/L83-1 -> 0.008869304332 | N85: 0.005575897255 | O85: 0.007799937157 | P85: 0.007556166896 | Q85: 0.005442597885 | R85: 0.006915779564 | S85: 0.00604120968
B87: Ratcheted maximum demand
C88: Total volume | D88: RIN Workbook 1 table 3.4.3 | E88: MVA | L88: 721.2527625 | M88: 721.2527625 | N88: 741.7972219 | O88: 755.0866104 | P88: 764.9748881 | Q88: 773.0828814 | R88: 775.9014915 | S88: 775.9014915
C89: Incremental throughput | D89: Calculated | E89: MVA | M89: =M88-L88 -> 0 | N89: =N88-M88 -> 20.54445945 | O89: =O88-N88 -> 13.28938852 | P89: =P88-O88 -> 9.888277643 | Q89: =Q88-P88 -> 8.1079933 | R89: =R88-Q88 -> 2.818610071 | S89: =S88-R88 -> 0
C90: Ratched maximum demand growth rate | M90: =M88/L88-1 -> 0 | N90: =N88/M88-1 -> 0.02848441008 | O90: 0.01791512306 | P90: 0.01309555421 | Q90: 0.01059903198 | R90: 0.003645935175 | S90: 0
C91: Output growth rates
C92: Customer numbers | D92: Calculated | E92: Per cent | M92: =LN(M77)-LN(L77) -> 0.02256444755 | N92: =LN(N77)-LN(M77) -> 0.01606596135 | O92: 0.01630735452 | P92: 0.01622783862 | Q92: 0.01594931699 | R92: 0.0155749167 | S92: 0.01518573122
C93: Circuit length | D93: Calculated | M93: =LN(M83)-LN(L83) -> 0.008830203082 | N93: =LN(N83)-LN(M83) -> 0.005560409485 | O93: =LN(O83)-LN(N83) -> 0.007769674908 | P93: 0.007527762065 | Q93: 0.005427840471 | R93: 0.006891975248 | S93: 0.006023034735
C94: Ratched maximum demand | D94: Calculated | E94: Per cent | M94: =LN(M88)-LN(L88) -> 0 | N94: =LN(N88)-LN(M88) -> 0.02808627207 | O94: 0.01775653849 | P94: 0.01301054877 | Q94: 0.010543256 | R94: 0.003639304865 | S94: 0
C96: Opex cost function estimate approach | D96: Calculated | E96: Per cent | N96: =SUMPRODUCT(N92:N94,$I$68:$I$70) -> 0.01702710041 | O96: =SUMPRODUCT(O92:O94,$I$68:$I$70) -> 0.01574598493 | P96: 0.01489834186 | Q96: 0.01409698253 | R96: 0.01284019202 | S96: 0.01188186875
C100: Output growth ($) | D100: Calculated | E100: Dollars
C102: Rate of change
C103: Real price change | E103: Per cent | N103: =N53-M53/1 -> 0.004407272879 | O103: =O53-N53/1 -> 0.003408309293 | P103: 0.006732526423 | Q103: 0.009467659081 | R103: 0.009268497114 | S103: 0.007872606348
C104: Output growth | E104: Per cent | N104: =N96 -> 0.01702710041 | O104: =O96 -> 0.01574598493 | P104: 0.01489834186 | Q104: 0.01409698253 | R104: 0.01284019202 | S104: 0.01188186875
C105: Productivity growth | E105: Per cent | N105: =M61 -> 0 | O105: =N61 -> 0 | P105: 0 | Q105: 0 | R105: 0 | S105: 0
C106: Rate of change | D106: Calculated | E106: Per cent | N106: =N103+N104-N105 -> 0.02143437329 | O106: =O103+O104-O105 -> 0.01915429422 | P106: 0.02163086828 | Q106: 0.02356464161 | R106: 0.02210868913 | S106: 0.01975447509
B109: Rate of change workings
C113: Rate of change component - total opex | M113: FY18 | N113: FY19 | O113: FY20 | P113: FY21 | Q113: FY22 | R113: FY23 | S113: FY24 | T113: Total FY19-24
C114: Real input cost escalation | M114: ='Total SCS opex forecast '!$M$28 -> 51.93925815 | N114: =M114*(1+N$103) -> 52.16816863 | O114: =N114*(1+O$103) -> 52.34597388 | P114: 52.69839454 | Q114: 53.19732497 | R114: 53.69038422 | S114: 54.11306748 | T114: =SUM(O114:S114) -> 266.0451451
C115: Output growth | M115: ='Total SCS opex forecast '!$M$28 -> 51.93925815 | N115: =M115*(1+N$104) -> 52.82363311 | O115: =N115*(1+O$104) -> 53.65539324 | P115: 54.45476963 | Q115: 55.22241757 | R115: 55.93148401 | S115: 56.59605457 | T115: 275.860119
C116: Opex partial factor productivity | M116: ='Total SCS opex forecast '!$M$28 -> 51.93925815 | N116: =M116*(1+N$105) -> 51.93925815 | O116: =N116*(1+O$105) -> 51.93925815 | P116: 51.93925815 | Q116: 51.93925815 | R116: 51.93925815 | S116: 51.93925815 | T116: 259.6962907
C117: Rate of change | M117: ='Total SCS opex forecast '!$M$28 -> 51.93925815 | N117: =M117*(1+N$106) -> 53.05254359 | O117: =N117*(1+O$106) -> 54.06872762 | P117: 55.23828115 | Q117: 56.53995145 | R117: 57.78997566 | S117: 58.93158629 | T117: 282.5685222
C119: Real input cost escalation | N119: =N114-$M114 -> 0.2289104838 | O119: =O114-$M114 -> 0.4067157378 | P119: =P114-$M114 -> 0.7591363901 | Q119: 1.258066824 | R119: 1.751126077 | S119: 2.173809336 | T119: =SUM(O119:S119) -> 6.348854364
C120: Output growth | N120: =N115-$M115 -> 0.8843749636 | O120: 1.716135094 | P120: =P115-$M115 -> 2.515511486 | Q120: 3.283159422 | R120: 3.992225867 | S120: 4.656796419 | T120: 16.16382829
C121: Opex partial factor productivity | N121: =N116-$M116 -> 0 | O121: 0 | P121: 0 | Q121: 0 | R121: 0 | S121: 0 | T121: 0
C122: Rate of change - additive | N122: =SUM(N119:N121) -> 1.113285447 | O122: =SUM(O119:O121) -> 2.122850832 | P122: 3.274647876 | Q122: 4.541226245 | R122: 5.743351944 | S122: 6.830605755 | T122: =SUM(O122:S122) -> 22.51268265
C124: Rate of change - multiplicative | N124: =N117-$M$117 -> 1.113285447 | O124: =O117-$M$117 -> 2.129469477 | P124: =P117-$M$117 -> 3.299023002 | Q124: 4.600693301 | R124: 5.850717511 | S124: 6.992328146 | T124: =SUM(O124:S124) -> 22.87223144
C128: Real input cost escalation | N128: =N119/N$122*N$124 -> 0.2289104838 | O128: 0.4079837999 | P128: =P119/P$122*P$124 -> 0.7647870878 | Q128: =Q119/Q$122*Q$124 -> 1.274541125 | R128: 1.783861428 | S128: 2.225276754 | T128: =SUM(O128:S128) -> 6.456450195
C129: Output growth | N129: 0.8843749636 | O129: 1.721485677 | P129: =P120/P$122*P$124 -> 2.534235914 | Q129: 3.326152176 | R129: 4.066856083 | S129: 4.767051391 | T129: =SUM(O129:S129) -> 16.41578124
C130: Opex partial factor productivity | N130: 0 | O130: 0 | P130: 0 | Q130: 0 | R130: 0 | S130: 0 | T130: =SUM(O130:S130) -> 0
C131: Rate of change - additive | N131: =SUM(N128:N130) -> 1.113285447 | O131: 2.129469477 | P131: =SUM(P128:P130) -> 3.299023002 | Q131: 4.600693301 | R131: 5.850717511 | S131: 6.992328146 | T131: =SUM(O131:S131) -> 22.87223144
C134: Rate of change component - Distribution | M134: FY18 | N134: FY19 | O134: FY20 | P134: FY21 | Q134: FY22 | R134: FY23 | S134: FY24 | T134: Total FY19-24
C135: Real input cost escalation | M135: ='SCS_Distribution opex forecast'!$M$28 -> 44.3345896 | N135: =M135*(1+N$103) -> 44.52998424 | O135: =N135*(1+O$103) -> 44.6817562 | P135: 44.9825773 | Q135: 45.40845701 | R135: 45.82932516 | S135: 46.1901214 | T135: =SUM(O135:S135) -> 227.0922371
C136: Output growth | M136: ='SCS_Distribution opex forecast'!$M$28 -> 44.3345896 | N136: =M136*(1+N$104) -> 45.08947911 | O136: =N136*(1+O$104) -> 45.79945737 | P136: 46.48179334 | Q136: 47.13704637 | R136: 47.7422951 | S136: 48.30956278 | T136: 235.470155
C137: Opex partial factor productivity | M137: ='SCS_Distribution opex forecast'!$M$28 -> 44.3345896 | N137: =M137*(1+N$105) -> 44.3345896 | O137: =N137*(1+O$105) -> 44.3345896 | P137: 44.3345896 | Q137: 44.3345896 | R137: 44.3345896 | S137: 44.3345896 | T137: 221.672948
C138: Rate of change | M138: ='SCS_Distribution opex forecast'!$M$28 -> 44.3345896 | N138: =M138*(1+N$106) -> 45.28487375 | O138: =N138*(1+O$106) -> 46.15227354 | P138: 47.15058729 | Q138: 48.26167398 | R138: 49.32867633 | S138: 50.30313844 | T138: 241.1963496
C140: Real input cost escalation | N140: =N135-$M135 -> 0.1953946344 | O140: =O135-$M135 -> 0.3471665935 | P140: =P135-$M135 -> 0.6479876977 | Q140: 1.073867404 | R140: 1.494735557 | S140: 1.855531793 | T140: =SUM(O140:S140) -> 5.419289045
C141: Output growth | N141: =N136-$M136 -> 0.7548895088 | O141: =O136-$M136 -> 1.464867767 | P141: =P136-$M136 -> 2.14720374 | Q141: =Q136-$M136 -> 2.802456769 | R141: 3.407705496 | S141: 3.974973179 | T141: 13.79720695
C142: Opex partial factor productivity | N142: =N137-$M137 -> 0 | O142: =O137-$M137 -> 0 | P142: 0 | Q142: 0 | R142: 0 | S142: 0 | T142: 0
C143: Rate of change - additive | N143: =SUM(N140:N142) -> 0.9502841431 | O143: =SUM(O140:O142) -> 1.812034361 | P143: 2.795191438 | Q143: 3.876324173 | R143: 4.902441052 | S143: 5.830504973 | T143: =SUM(O143:S143) -> 19.216496
C145: Rate of change - multiplicative | N145: =N138-$M$138 -> 0.9502841431 | O145: =O138-$M$138 -> 1.817683939 | P145: 2.815997689 | Q145: 3.92708438 | R145: 4.994086727 | S145: 5.968548835 | T145: =SUM(O145:S145) -> 19.52340157
C149: Real input cost escalation | N149: =N140/N$122*N$124 -> 0.1953946344 | O149: 0.3482489928 | P149: =P140/P$122*P$124 -> 0.6528110505 | Q149: =Q140/Q$122*Q$124 -> 1.087929626 | R149: 1.522677973 | S149: 1.899463627 | T149: =SUM(O149:S149) -> 5.51113127
C150: Output growth | N150: =N141/N$122*N$124 -> 0.7548895088 | O150: 1.469434946 | P150: =P141/P$122*P$124 -> 2.163186638 | Q150: =Q141/Q$122*Q$124 -> 2.839154754 | R150: 3.471408754 | S150: 4.069085208 | T150: =SUM(O150:S150) -> 14.0122703
C151: Opex partial factor productivity | N151: =N142/N$122*N$124 -> 0 | O151: 0 | P151: 0 | Q151: 0 | R151: 0 | S151: 0 | T151: =SUM(O151:S151) -> 0
C152: Rate of change - additive | N152: =SUM(N149:N151) -> 0.9502841431 | O152: 1.817683939 | P152: =SUM(P149:P151) -> 2.815997689 | Q152: =SUM(Q149:Q151) -> 3.92708438 | R152: 4.994086727 | S152: 5.968548835 | T152: =SUM(O152:S152) -> 19.52340157
C155: Rate of change component - Transmission | M155: FY18 | N155: FY19 | O155: FY20 | P155: FY21 | Q155: FY22 | R155: FY23 | S155: FY24 | T155: Total FY19-24
C156: Real input cost escalation | M156: ='SCS_Transmission opex forecast'!$M$28 -> 7.604668544 | N156: =M156*(1+N$103) -> 7.638184394 | O156: =N156*(1+O$103) -> 7.664217689 | P156: 7.715817237 | Q156: 7.788867964 | R156: 7.861059064 | S156: 7.922946088 | T156: =SUM(O156:S156) -> 38.95290804
C157: Output growth | M157: ='SCS_Transmission opex forecast'!$M$28 -> 7.604668544 | N157: =M157*(1+N$104) -> 7.734153999 | O157: =N157*(1+O$104) -> 7.855935872 | P157: 7.97297629 | Q157: 8.085371197 | R157: 8.189188916 | S157: 8.286491784 | T157: 40.38996406
C158: Opex partial factor productivity | M158: ='SCS_Transmission opex forecast'!$M$28 -> 7.604668544 | N158: =M158*(1+N$105) -> 7.604668544 | O158: =N158*(1+O$105) -> 7.604668544 | P158: 7.604668544 | Q158: 7.604668544 | R158: 7.604668544 | S158: 7.604668544 | T158: 38.02334272
C159: Rate of change | M159: ='SCS_Transmission opex forecast'!$M$28 -> 7.604668544 | N159: =M159*(1+N$106) -> 7.767669849 | O159: =N159*(1+O$106) -> 7.916454082 | P159: 8.087693858 | Q159: 8.278277465 | R159: 8.461299328 | S159: 8.628447855 | T159: 41.37217259
C161: Real input cost escalation | N161: =N156-$M156 -> 0.03351584943 | O161: =O156-$M156 -> 0.05954914428 | P161: =P156-$M156 -> 0.1111486924 | Q161: 0.1841994195 | R161: 0.2563905198 | S161: 0.3182775432 | T161: =SUM(O161:S161) -> 0.9295653192
C162: Output growth | N162: =N157-$M157 -> 0.1294854549 | O162: =O157-$M157 -> 0.2512673272 | P162: =P157-$M157 -> 0.3683077454 | Q162: =Q157-$M157 -> 0.4807026529 | R162: 0.5845203716 | S162: 0.6818232395 | T162: 2.366621337
C163: Opex partial factor productivity | N163: =N158-$M158 -> 0 | O163: =O158-$M158 -> 0 | P163: 0 | Q163: 0 | R163: 0 | S163: 0 | T163: 0
C164: Rate of change - additive | N164: =SUM(N161:N163) -> 0.1630013043 | O164: =SUM(O161:O163) -> 0.3108164715 | P164: 0.4794564378 | Q164: 0.6649020724 | R164: 0.8409108914 | S164: 1.000100783 | T164: =SUM(O164:S164) -> 3.296186656
C166: Rate of change - multiplicative | N166: =N159-$M$159 -> 0.1630013043 | O166: =O159-$M$159 -> 0.311785538 | P166: 0.4830253135 | Q166: 0.6736089208 | R166: 0.8566307838 | S166: 1.023779311 | T166: =SUM(O166:S166) -> 3.348829867
C170: Real input cost escalation | N170: =N161/N$122*N$124 -> 0.03351584943 | O170: 0.05973480717 | P170: =P161/P$122*P$124 -> 0.1119760373 | Q170: =Q161/Q$122*Q$124 -> 0.1866114986 | R170: 0.2611834549 | S170: 0.3258131275 | T170: =SUM(O170:S170) -> 0.9453189256
C171: Output growth | N171: =N162/N$122*N$124 -> 0.1294854549 | O171: 0.2520507308 | P171: =P162/P$122*P$124 -> 0.3710492762 | Q171: =Q162/Q$122*Q$124 -> 0.4869974221 | R171: 0.5954473289 | S171: 0.6979661831 | T171: =SUM(O171:S171) -> 2.403510941
C172: Opex partial factor productivity | N172: =N163/N$122*N$124 -> 0 | O172: 0 | P172: 0 | Q172: 0 | R172: 0 | S172: 0 | T172: =SUM(O172:S172) -> 0
C173: Rate of change - additive | N173: =SUM(N170:N172) -> 0.1630013043 | O173: 0.311785538 | P173: =SUM(P170:P172) -> 0.4830253135 | Q173: =SUM(Q170:Q172) -> 0.6736089208 | R173: 0.8566307838 | S173: 1.023779311 | T173: =SUM(O173:S173) -> 3.348829867

Sheet ACT labour price forecast
B1: Expected Labour Price Changes for Australia and the Australian Capital Territory
B2: (per cent change, year average, year ended June)
C4: 2012 | D4: 2013 | E4: 2014 | F4: 2015 | G4: 2016 | H4: 2017 | I4: 2018 | J4: 2019 | K4: 2020 | L4: 2021 | M4: 2022 | N4: 2023 | O4: 2024 | P4: Average (g)
B5: NOMINAL LABOUR PRICE CHANGES | C5: Actuals | I5: Forecasts | K5: Next Regulatory Period
B7: Australian Capital Territory Wage Inflation
B8: (1) All Industries
B9: Average Weekly Earnings (a) | C9: 5.701639145 | D9: 5.285096944 | E9: -3.680396644 | F9: 1.088893288 | G9: 1.912782348 | H9: 0.482260677 | I9: 2.572171551 | J9: 3.277012922 | K9: 3.099991397 | L9: 3.27014516 | M9: 4.058612148 | N9: 4.269658733 | O9: 3.729881438 | P9: =AVERAGE(K9:O9) -> 3.685657775
B10: Average Weekly Ordinary Time Earnings (b) | C10: 5.291094733 | D10: 6.608226568 | E10: 0.7484714316 | F10: 1.591952047 | G10: 1.124124537 | H10: 2.11049354 | I10: 2.972171551 | J10: 3.577012922 | K10: 3.199991397 | L10: 3.47014516 | M10: 4.358612148 | N10: 4.669658733 | O10: 3.979881438 | P10: =AVERAGE(K10:O10) -> 3.935657775
B11: Wage Price Index (c) | C11: 3.31002331 | D11: 3.700361011 | E11: 2.371627502 | F11: 1.74282678 | G11: 1.733862544 | H11: 1.848049281 | I11: 2.372171551 | J11: 2.777012922 | K11: 2.599991397 | L11: 3.07014516 | M11: 3.558612148 | N11: 3.769658733 | O11: 3.279881438 | P11: =AVERAGE(K11:O11) -> 3.255657775
B12: (2) Electricity, Gas, Water and Waste Services Wages
B13: Wage Price Index (c) | C13: 3.4 | D13: 4 | E13: 3.1 | F13: 2.6 | G13: 2.3 | H13: 2.1 | I13: 2.532505119 | J13: 2.980205038 | K13: 3.066722327 | L13: 3.613153599 | M13: 4.048146245 | N13: 3.992473718 | O13: 3.749056463 | P13: =AVERAGE(K13:O13) -> 3.693910471
B14: Australian Wage Inflation (d)
B15: (1) All Industries
B16: Average Weekly Earnings | C16: 4.143446208 | D16: 4.304945648 | E16: 2.730807279 | F16: 1.317911049 | G16: 1.700834392 | H16: 1.624576198 | I16: 2.455346992 | J16: 2.765667281 | K16: 2.959088404 | L16: 3.164240462 | M16: 3.420013222 | N16: 3.637870549 | O16: 3.817746947 | P16: =AVERAGE(K16:O16) -> 3.399791917
B17: Average Weekly Ordinary Time Earnings | C17: 4.333333333 | D17: 4.589615679 | E17: 2.994846328 | F17: 2.429929235 | G17: 1.877000186 | H17: 2.045192012 | I17: 3.382824838 | J17: 3.421348157 | K17: 3.283697059 | L17: 3.875593469 | M17: 4.540782502 | N17: 4.434081203 | O17: 3.802489273 | P17: =AVERAGE(K17:O17) -> 3.987328701
B18: Wage Price Index | C18: 3.644859813 | D18: 3.313796213 | E18: 2.618372245 | F18: 2.402721667 | G18: 2.117940199 | H18: 1.952013013 | I18: 2.400840455 | J18: 2.569295163 | K18: 2.594136088 | L18: 3.27014516 | M18: 3.708612148 | N18: 3.769658733 | O18: 3.379881438 | P18: =AVERAGE(K18:O18) -> 3.344486713
B19: (2) Electricity, Gas, Water and Waste Services Wages
B20: Wage Price Index | C20: 3.495860166 | D20: 4.222222222 | E20: 3.162260128 | F20: 2.849473467 | G20: 2.409154788 | H20: 2.195647912 | I20: 2.639235142 | J20: 3.187793675 | K20: 3.278532816 | L20: 3.767548668 | M20: 4.136624612 | N20: 4.228125429 | O20: 3.932765011 | P20: =AVERAGE(K20:O20) -> 3.868719307
B22: Consumer Price Index (headline) (e) | C22: 2.302379125 | D22: 2.275568892 | E22: 2.71393643 | F22: 1.713877648 | G22: 1.38076293 | H22: 1.708217913 | I22: 1.962076309 | J22: 2.241968375 | K22: 2.5 | L22: 2.5 | M22: 2.5 | N22: 2.5 | O22: 2.5 | P22: 2.338447056
B23: REAL LABOUR PRICE CHANGES (f)
B24: Australian Capital Territory Wage Inflation
B25: (1) All Industries
B26: Average Weekly Earnings | C26: =C9-C22 -> 3.39926002 | D26: 3.009528052 | E26: -6.394333074 | F26: -0.6249843597 | G26: 0.5320194175 | H26: -1.225957236 | I26: 0.6100952422 | J26: 1.035044547 | K26: 0.5999913974 | L26: 0.7701451596 | M26: 1.558612148 | N26: 1.769658733 | O26: 1.229881438 | P26: 1.347210719
B27: Average Weekly Ordinary Time Earnings | C27: =C10-C22 -> 2.988715607 | D27: 4.332657676 | E27: -1.965464999 | F27: -0.1219256011 | G27: -0.2566383935 | H27: 0.4022756265 | I27: 1.010095242 | J27: 1.335044547 | K27: 0.6999913974 | L27: 0.9701451596 | M27: 1.858612148 | N27: 2.169658733 | O27: 1.479881438 | P27: 1.597210719
B28: Wage Price Index | C28: =C11-C22 -> 1.007644185 | D28: 1.424792119 | E28: -0.3423089281 | F28: 0.02894913184 | G28: 0.3530996144 | H28: 0.1398313681 | I28: 0.4100952422 | J28: 0.5350445474 | K28: 0.09999139737 | L28: 0.5701451596 | M28: 1.058612148 | N28: 1.269658733 | O28: 0.7798814377 | P28: =P11-P22 -> 0.917210719
B29: (2) Electricity, Gas, Water and Waste Services Wages
B30: Wage Price Index | C30: =C13-C22 -> 1.097620875 | D30: 1.724431108 | E30: 0.3860635697 | F30: 0.8861223518 | G30: 0.91923707 | H30: 0.3917820868 | I30: 0.5704288097 | J30: 0.7382366632 | K30: 0.5667223273 | L30: 1.113153599 | M30: 1.548146245 | N30: 1.492473718 | O30: 1.249056463 | P30: 1.355463415
B31: Australian Wage Inflation
B32: (1) All Industries
B33: Average Weekly Earnings | C33: =C16-C22 -> 1.841067083 | D33: 2.029376756 | E33: 0.01687084877 | F33: -0.3959665988 | G33: 0.3200714624 | H33: -0.08364171569 | I33: 0.4932706829 | J33: 0.5236989055 | K33: 0.4590884039 | L33: 0.6642404621 | M33: 0.9200132224 | N33: 1.137870549 | O33: 1.317746947 | P33: 1.061344861
B34: Average Weekly Ordinary Time Earnings | C34: =C17-C22 -> 2.030954208 | D34: 2.314046787 | E34: 0.2809098974 | F34: 0.7160515873 | G34: 0.4962372562 | H34: 0.3369740988 | I34: 1.420748529 | J34: 1.179379782 | K34: 0.7836970594 | L34: 1.375593469 | M34: 2.040782502 | N34: 1.934081203 | O34: 1.302489273 | P34: 1.648881645
B35: Wage Price Index | C35: =C18-C22 -> 1.342480688 | D35: 1.038227321 | E35: -0.09556418506 | F35: 0.6888440188 | G35: 0.7371772693 | H35: 0.2437951002 | I35: 0.4387641463 | J35: 0.3273267879 | K35: 0.09413608776 | L35: 0.7701451596 | M35: 1.208612148 | N35: 1.269658733 | O35: 0.8798814377 | P35: 1.006039657
B36: (2) Electricity, Gas, Water and Waste Services Wages
B37: Wage Price Index | C37: =C20-C22 -> 1.19348104 | D37: =D20-D22 -> 1.94665333 | E37: 0.4483236976 | F37: 1.135595819 | G37: =G20-G22 -> 1.028391858 | H37: 0.487429999 | I37: 0.6771588334 | J37: 0.9458253001 | K37: 0.7785328162 | L37: 1.267548668 | M37: 1.636624612 | N37: 1.728125429 | O37: 1.432765011 | P37: =P20-P22 -> 1.530272251
P39: Source: BIS Oxford Economics, Department of Employment, RBA, ABS Data
B41: (a) Average Weekly Earnings (AWE) for all employees (i.e. for both full-time and part-time employees). Includes overtime earnings but excludes bonus payments.
B42: It is derived by dividing weekly earnings of all adult employees by the number of employees. It is not a strict wage inflation measure but a long historical series allows for the calculation of how employee
B43: earnings has changed over time.
B44: (b) Average Weekly Ordinary Time Earnings for full-time adult persons. Excludes over-time earnings but includes bonuses.
B45: (c) Wage price index for total hourly rates of pay excluding bonuses. This is the only series published by the ABS at the state by industry level. It measures quarterly change in combined ordinary time and overtime hourly rates of pay.
B46: (d) Australian wages provided for comparison.
B47: (e) Reserve Bank of Australia forecasts to December 2019. Beyond that, we have used the mid-point of the Reserve Bank's 2 to 3 per cent inflation target range as preferred by the AER in their recent revenue determinations.
B48: (f) Real price changes are calculated by deducting the inflation rate from nominal price changes.
B49: (g) Expected average wage change for ActewAGL's next revenue determination period i.e. from 2019/20 to 2023/24 inclusive.
B50: Average inflation is calculated as a geometric mean of Reserve Bank's inflation forecasts for the next two years and assuming an inflation of 2.5% (the mid-point of the bank's 2 to 3 per cent inflation target)
B51: for the next eight years. This methodology has been adopted by the AER in their recent revenue determinations.
